[Event "Titled Tuesday Blitz August 08 Late 2023"]
[White "Sjugirov, Sanan"]
[Black "Kuzmicz, Krystian"]
[WhiteFideId "4189302"]
[BlackFideId "1119125"]
[WhiteElo "2955"]
[BlackElo "2759"]
[Result "1/2-1/2"]
[Round "6"]
[TimeControl "180+1"]
[Date "2023.08.08"]
[WhiteClock "0:00:03"]
[BlackClock "0:00:16"]
[Board "14"]

1. e4 {[%clk 0:03:00]}  c5 {[%clk 0:02:59]} 2. Nf3 {[%clk 0:03:00]}  e6 {[%clk 0:02:59]} 3. d4 {[%clk 0:03:00]}  cxd4 {[%clk 0:03:00]} 4. Nxd4 {[%clk 0:03:01]}  Nf6 {[%clk 0:03:00]} 5. Nc3 {[%clk 0:03:02]}  Nc6 {[%clk 0:03:00]} 6. Ndb5 {[%clk 0:02:58]}  Bc5 {[%clk 0:03:00]} 7. Nd6+ {[%clk 0:02:56]}  Ke7 {[%clk 0:03:00]} 8. Bf4 {[%clk 0:02:57]}  e5 {[%clk 0:03:00]} 9. Nf5+ {[%clk 0:02:57]}  Kf8 {[%clk 0:03:00]} 10. Bg5 {[%clk 0:02:58]}  d6 {[%clk 0:03:00]} 11. Bc4 {[%clk 0:02:28]}  h6 {[%clk 0:02:39]} 12. Bxf6 {[%clk 0:02:27]}  Qxf6 {[%clk 0:02:37]} 13. Nd5 {[%clk 0:02:28]}  Qg6 {[%clk 0:02:36]} 14. Ng3 {[%clk 0:01:53]}  h5 {[%clk 0:02:35]} 15. h4 {[%clk 0:01:53]}  Bg4 {[%clk 0:02:34]} 16. Qd3 {[%clk 0:01:47]}  a6 {[%clk 0:02:23]} 17. c3 {[%clk 0:01:46]}  Rd8 {[%clk 0:02:13]} 18. Ne3 {[%clk 0:01:41]}  Be6 {[%clk 0:02:06]} 19. b4 {[%clk 0:01:24]}  Bxe3 {[%clk 0:02:00]} 20. Bxe6 {[%clk 0:01:21]}  Bxf2+ {[%clk 0:01:50]} 21. Kxf2 {[%clk 0:01:22]}  fxe6 {[%clk 0:01:51]} 22. Rhf1 {[%clk 0:01:23]}  Ke7 {[%clk 0:01:48]} 23. Kg1 {[%clk 0:01:24]}  Rhf8 {[%clk 0:01:41]} 24. Rxf8 {[%clk 0:01:21]}  Rxf8 {[%clk 0:01:39]} 25. Rd1 {[%clk 0:01:21]}  Rd8 {[%clk 0:01:33]} 26. Qf3 {[%clk 0:01:21]}  Rh8 {[%clk 0:01:29]} 27. Qd3 {[%clk 0:01:19]}  Rd8 {[%clk 0:01:28]} 28. Qf3 {[%clk 0:01:19]}  Rh8 {[%clk 0:01:28]} 29. Rf1 {[%clk 0:00:59]}  Qf6 {[%clk 0:00:51]} 30. Qe3 {[%clk 0:00:47]}  Qxh4 {[%clk 0:00:48]} 31. Qb6 {[%clk 0:00:45]}  Rd8 {[%clk 0:00:46]} 32. Qxb7+ {[%clk 0:00:32]}  Rd7 {[%clk 0:00:45]} 33. Qxc6 {[%clk 0:00:30]}  Qxg3 {[%clk 0:00:44]} 34. Qc8 {[%clk 0:00:30]}  Rd8 {[%clk 0:00:37]} 35. Qc7+ {[%clk 0:00:16]}  Rd7 {[%clk 0:00:37]} 36. Qb8 {[%clk 0:00:12]}  Rd8 {[%clk 0:00:36]} 37. Qa7+ {[%clk 0:00:07]}  Rd7 {[%clk 0:00:36]} 38. Qxa6 {[%clk 0:00:07]}  Qe3+ {[%clk 0:00:33]} 39. Kh1 {[%clk 0:00:06]}  Qxe4 {[%clk 0:00:33]} 40. Qc8 {[%clk 0:00:04]}  Rd8 {[%clk 0:00:30]} 41. Qc7+ {[%clk 0:00:04]}  Rd7 {[%clk 0:00:30]} 42. Qb8 {[%clk 0:00:04]}  Rd8 {[%clk 0:00:30]} 43. Qa7+ {[%clk 0:00:05]}  Rd7 {[%clk 0:00:30]} 44. Qf2 {[%clk 0:00:05]}  Kd8 {[%clk 0:00:25]} 45. Qf8+ {[%clk 0:00:03]}  Kc7 {[%clk 0:00:25]} 46. Qe8 {[%clk 0:00:01]}  h4 {[%clk 0:00:20]} 47. Qf8 {[%clk 0:00:01]}  h3 {[%clk 0:00:19]} 48. Qf2 {[%clk 0:00:02]}  hxg2+ {[%clk 0:00:19]} 49. Qxg2 {[%clk 0:00:03]}  Qxg2+ {[%clk 0:00:19]} 50. Kxg2 {[%clk 0:00:03]}  Kb6 {[%clk 0:00:19]} 51. a4 {[%clk 0:00:03]}  Rc7 {[%clk 0:00:19]} 52. Rf3 {[%clk 0:00:03]}  e4 {[%clk 0:00:19]} 53. Rg3 {[%clk 0:00:03]}  d5 {[%clk 0:00:18]} 54. Kf2 {[%clk 0:00:03]}  e5 {[%clk 0:00:18]} 55. Rg6+ {[%clk 0:00:03]}  Kb7 {[%clk 0:00:18]} 56. Rd6 {[%clk 0:00:04]}  Rxc3 {[%clk 0:00:18]} 57. Rxd5 {[%clk 0:00:04]}  Rc4 {[%clk 0:00:19]} 58. Rb5+ {[%clk 0:00:04]}  Ka6 {[%clk 0:00:19]} 59. Ke3 {[%clk 0:00:04]}  g5 {[%clk 0:00:19]} 60. Rb8 {[%clk 0:00:05]}  g4 {[%clk 0:00:17]} 61. a5 {[%clk 0:00:05]}  g3 {[%clk 0:00:16]} 62. Rb6+ {[%clk 0:00:05]}  Ka7 {[%clk 0:00:16]} 63. b5 {[%clk 0:00:06]}  Ra4 {[%clk 0:00:14]} 64. Ra6+ {[%clk 0:00:05]}  Kb7 {[%clk 0:00:15]} 65. Rb6+ {[%clk 0:00:06]}  Ka7 {[%clk 0:00:15]} 66. Ra6+ {[%clk 0:00:03]}  Kb7 {[%clk 0:00:15]} 67. Rb6+ {[%clk 0:00:03]}  Ka7 {[%clk 0:00:16]} 1/2-1/2


[Site "https://www.chess.com"]

[Event "Titled Tuesday Blitz August 08 Late 2023"]
[White "Lamaze, Simon"]
[Black "Nguyen, Ngoc Truong Son"]
[WhiteFideId "36069264"]
[BlackFideId "12401110"]
[WhiteElo "2758"]
[BlackElo "2945"]
[Result "0-1"]
[Round "6"]
[TimeControl "180+1"]
[Date "2023.08.08"]
[WhiteClock "0:00:41"]
[BlackClock "0:00:23"]
[Board "15"]

1. c4 {[%clk 0:02:56]}  g6 {[%clk 0:03:00]} 2. Nf3 {[%clk 0:02:51]}  Bg7 {[%clk 0:03:01]} 3. d4 {[%clk 0:02:51]}  c5 {[%clk 0:03:02]} 4. dxc5 {[%clk 0:02:51]}  Qa5+ {[%clk 0:03:01]} 5. Bd2 {[%clk 0:02:50]}  Qxc5 {[%clk 0:03:02]} 6. Bc3 {[%clk 0:02:47]}  Nf6 {[%clk 0:03:01]} 7. e4 {[%clk 0:02:46]}  O-O {[%clk 0:03:00]} 8. Nbd2 {[%clk 0:02:46]}  Ng4 {[%clk 0:02:58]} 9. Qe2 {[%clk 0:02:37]}  Bxc3 {[%clk 0:02:57]} 10. bxc3 {[%clk 0:02:38]}  d6 {[%clk 0:02:56]} 11. h3 {[%clk 0:02:37]}  Ne5 {[%clk 0:02:55]} 12. Nxe5 {[%clk 0:02:37]}  Qxe5 {[%clk 0:02:56]} 13. Qe3 {[%clk 0:02:37]}  Na6 {[%clk 0:02:54]} 14. Be2 {[%clk 0:02:32]}  f5 {[%clk 0:02:50]} 15. f4 {[%clk 0:02:29]}  Qc5 {[%clk 0:02:49]} 16. Qxc5 {[%clk 0:02:29]}  Nxc5 {[%clk 0:02:50]} 17. exf5 {[%clk 0:02:28]}  Bxf5 {[%clk 0:02:44]} 18. g3 {[%clk 0:02:19]}  e5 {[%clk 0:02:38]} 19. O-O {[%clk 0:02:17]}  Bxh3 {[%clk 0:02:37]} 20. Rf2 {[%clk 0:02:12]}  exf4 {[%clk 0:02:35]} 21. gxf4 {[%clk 0:02:11]}  Rae8 {[%clk 0:02:34]} 22. Bf3 {[%clk 0:02:08]}  Nd3 {[%clk 0:02:28]} 23. Bd5+ {[%clk 0:02:08]}  Kg7 {[%clk 0:02:27]} 24. Rh2 {[%clk 0:02:00]}  Nxf4 {[%clk 0:02:27]} 25. Bxb7 {[%clk 0:02:00]}  Re3 {[%clk 0:02:14]} 26. Ne4 {[%clk 0:01:59]}  Ne2+ {[%clk 0:01:31]} 27. Kh1 {[%clk 0:01:55]}  Ng3+ {[%clk 0:01:23]} 28. Nxg3 {[%clk 0:01:55]}  Rxg3 {[%clk 0:01:23]} 29. Rc1 {[%clk 0:01:53]}  h5 {[%clk 0:01:22]} 30. Rd2 {[%clk 0:01:53]}  Rf4 {[%clk 0:01:12]} 31. Kh2 {[%clk 0:01:45]}  Re3 {[%clk 0:01:12]} 32. Rxd6 {[%clk 0:01:43]}  Bf5 {[%clk 0:00:58]} 33. Rd4 {[%clk 0:01:41]}  Rf2+ {[%clk 0:00:58]} 34. Kg1 {[%clk 0:01:41]}  Rxa2 {[%clk 0:00:57]} 35. c5 {[%clk 0:01:34]}  Rg3+ {[%clk 0:00:56]} 36. Kh1 {[%clk 0:01:35]}  Rb2 {[%clk 0:00:48]} 37. c6 {[%clk 0:01:28]}  Rh3+ {[%clk 0:00:29]} 38. Kg1 {[%clk 0:01:27]}  Rg3+ {[%clk 0:00:28]} 39. Kh1 {[%clk 0:01:27]}  Bh3 {[%clk 0:00:27]} 40. Rg1 {[%clk 0:01:19]}  Rxc3 {[%clk 0:00:23]} 41. Ba8 {[%clk 0:01:00]}  Bf5 {[%clk 0:00:23]} 42. Re1 {[%clk 0:00:51]}  Bg4 {[%clk 0:00:23]} 43. Rf4 {[%clk 0:00:47]}  Rh3+ {[%clk 0:00:22]} 44. Kg1 {[%clk 0:00:47]}  Rg3+ {[%clk 0:00:23]} 45. Kh1 {[%clk 0:00:46]}  Bf3+ {[%clk 0:00:23]} 46. Rxf3 {[%clk 0:00:45]}  Rxf3 {[%clk 0:00:24]} 47. c7 {[%clk 0:00:46]}  Rc3 {[%clk 0:00:24]} 48. Re7+ {[%clk 0:00:41]}  Kh6 {[%clk 0:00:23]} 0-1


[Site "https://www.chess.com"]

[Event "Titled Tuesday Blitz August 08 Late 2023"]
[White "Zhigalko, Sergei"]
[Black "Urazayev, Arystanbek"]
[WhiteFideId "13502956"]
[BlackFideId "13709810"]
[WhiteElo "2891"]
[BlackElo "2754"]
[Result "1-0"]
[Round "6"]
[TimeControl "180+1"]
[Date "2023.08.08"]
[WhiteClock "0:00:04"]
[BlackClock "0:00:00"]
[Board "17"]

1. e4 {[%clk 0:03:00]}  c5 {[%clk 0:02:56]} 2. Nf3 {[%clk 0:03:00]}  e6 {[%clk 0:02:57]} 3. c3 {[%clk 0:03:01]}  d5 {[%clk 0:02:57]} 4. e5 {[%clk 0:03:01]}  Nc6 {[%clk 0:02:58]} 5. d4 {[%clk 0:03:02]}  Bd7 {[%clk 0:02:58]} 6. Be2 {[%clk 0:03:02]}  Nge7 {[%clk 0:02:57]} 7. Na3 {[%clk 0:03:02]}  cxd4 {[%clk 0:02:56]} 8. cxd4 {[%clk 0:03:03]}  Nf5 {[%clk 0:02:57]} 9. Nc2 {[%clk 0:03:03]}  Be7 {[%clk 0:02:57]} 10. O-O {[%clk 0:03:04]}  O-O {[%clk 0:02:57]} 11. Bd3 {[%clk 0:03:04]}  f6 {[%clk 0:02:58]} 12. Bxf5 {[%clk 0:02:51]}  exf5 {[%clk 0:02:57]} 13. Re1 {[%clk 0:02:52]}  Rc8 {[%clk 0:02:49]} 14. Bf4 {[%clk 0:02:32]}  fxe5 {[%clk 0:02:37]} 15. dxe5 {[%clk 0:02:11]}  Be6 {[%clk 0:02:28]} 16. Ncd4 {[%clk 0:02:11]}  Nxd4 {[%clk 0:02:29]} 17. Nxd4 {[%clk 0:02:12]}  Qd7 {[%clk 0:02:29]} 18. Qd2 {[%clk 0:02:01]}  Rc4 {[%clk 0:02:26]} 19. Red1 {[%clk 0:01:43]}  Bc5 {[%clk 0:02:20]} 20. Nxe6 {[%clk 0:01:22]}  Qxe6 {[%clk 0:02:19]} 21. b3 {[%clk 0:01:18]}  Rd4 {[%clk 0:02:11]} 22. Qc3 {[%clk 0:01:16]}  Rxf4 {[%clk 0:01:59]} 23. Qxc5 {[%clk 0:01:16]}  Rd8 {[%clk 0:01:38]} 24. Qxa7 {[%clk 0:01:06]}  Qxe5 {[%clk 0:01:36]} 25. Qxb7 {[%clk 0:01:01]}  d4 {[%clk 0:01:36]} 26. Rd2 {[%clk 0:00:15]}  Re4 {[%clk 0:01:31]} 27. Rf1 {[%clk 0:00:11]}  Re1 {[%clk 0:01:26]} 28. Qa6 {[%clk 0:00:10]}  d3 {[%clk 0:01:27]} 29. Qc4+ {[%clk 0:00:09]}  Kh8 {[%clk 0:01:26]} 30. Rxd3 {[%clk 0:00:09]}  Rxf1+ {[%clk 0:01:01]} 31. Kxf1 {[%clk 0:00:10]}  Qa1+ {[%clk 0:00:58]} 32. Ke2 {[%clk 0:00:10]}  Qxa2+ {[%clk 0:00:59]} 33. Kf3 {[%clk 0:00:09]}  Qa8+ {[%clk 0:00:58]} 34. Kg3 {[%clk 0:00:08]}  Rb8 {[%clk 0:00:40]} 35. h3 {[%clk 0:00:05]}  Qa7 {[%clk 0:00:27]} 36. f4 {[%clk 0:00:04]}  h6 {[%clk 0:00:25]} 37. Kh2 {[%clk 0:00:04]}  Qf2 {[%clk 0:00:23]} 38. Rf3 {[%clk 0:00:04]}  Qb2 {[%clk 0:00:23]} 39. Qf7 {[%clk 0:00:04]}  Qc2 {[%clk 0:00:16]} 40. Rg3 {[%clk 0:00:03]}  Rg8 {[%clk 0:00:17]} 41. Qe6 {[%clk 0:00:02]}  Qe4 {[%clk 0:00:15]} 42. Qxe4 {[%clk 0:00:02]}  fxe4 {[%clk 0:00:16]} 43. Re3 {[%clk 0:00:03]}  Rb8 {[%clk 0:00:16]} 44. f5 {[%clk 0:00:03]}  Kg8 {[%clk 0:00:13]} 45. Kg3 {[%clk 0:00:03]}  Kf7 {[%clk 0:00:14]} 46. Kf4 {[%clk 0:00:03]}  Rb4 {[%clk 0:00:15]} 47. g4 {[%clk 0:00:03]}  Kf6 {[%clk 0:00:15]} 48. h4 {[%clk 0:00:04]}  g5+ {[%clk 0:00:13]} 49. fxg6 {[%clk 0:00:04]}  Kxg6 {[%clk 0:00:14]} 50. Ke5 {[%clk 0:00:03]}  h5 {[%clk 0:00:13]} 51. g5 {[%clk 0:00:03]}  Rb5+ {[%clk 0:00:14]} 52. Kf4 {[%clk 0:00:03]}  Rb4 {[%clk 0:00:13]} 53. Ke5 {[%clk 0:00:02]}  Kg7 {[%clk 0:00:13]} 54. Kd5 {[%clk 0:00:02]}  Rb5+ {[%clk 0:00:12]} 55. Kc4 {[%clk 0:00:02]}  Re5 {[%clk 0:00:12]} 56. b4 {[%clk 0:00:03]}  Kg6 {[%clk 0:00:12]} 57. b5 {[%clk 0:00:03]}  Kf5 {[%clk 0:00:13]} 58. b6 {[%clk 0:00:03]}  Kf4 {[%clk 0:00:12]} 59. Re1 {[%clk 0:00:03]}  e3 {[%clk 0:00:11]} 60. b7 {[%clk 0:00:03]}  Re8 {[%clk 0:00:12]} 61. Kc5 {[%clk 0:00:04]}  Kg4 {[%clk 0:00:12]} 62. Kc6 {[%clk 0:00:03]}  Kxh4 {[%clk 0:00:12]} 63. g6 {[%clk 0:00:04]}  Kg5 {[%clk 0:00:11]} 64. g7 {[%clk 0:00:04]}  Kf6 {[%clk 0:00:11]} 65. Rxe3 {[%clk 0:00:04]}  Rg8 {[%clk 0:00:11]} 66. Rf3+ {[%clk 0:00:04]}  Ke6 {[%clk 0:00:00]} 67. Rf8 {[%clk 0:00:04]} 1-0


[Site "https://www.chess.com"]

[Event "Titled Tuesday Blitz August 08 Late 2023"]
[White "Akobian, Varuzhan"]
[Black "Perez Ponsa, Federico"]
[WhiteFideId "13300580"]
[BlackFideId "117927"]
[WhiteElo "2740"]
[BlackElo "2883"]
[Result "0-1"]
[Round "6"]
[TimeControl "180+1"]
[Date "2023.08.08"]
[WhiteClock "0:00:00"]
[BlackClock "0:00:10"]
[Board "19"]

1. d4 {[%clk 0:02:55]}  Nf6 {[%clk 0:02:46]} 2. c4 {[%clk 0:02:52]}  g6 {[%clk 0:02:47]} 3. Nc3 {[%clk 0:02:44]}  Bg7 {[%clk 0:02:47]} 4. Nf3 {[%clk 0:02:42]}  d6 {[%clk 0:02:47]} 5. Bg5 {[%clk 0:02:37]}  h6 {[%clk 0:02:47]} 6. Bf4 {[%clk 0:02:35]}  Nc6 {[%clk 0:02:42]} 7. d5 {[%clk 0:02:25]}  e5 {[%clk 0:02:35]} 8. Bd2 {[%clk 0:02:12]}  Ne7 {[%clk 0:02:33]} 9. e4 {[%clk 0:02:12]}  O-O {[%clk 0:02:28]} 10. Bd3 {[%clk 0:02:03]}  Nh5 {[%clk 0:02:22]} 11. Qc1 {[%clk 0:01:56]}  Nf4 {[%clk 0:02:04]} 12. Bxf4 {[%clk 0:01:54]}  exf4 {[%clk 0:02:05]} 13. Qxf4 {[%clk 0:01:54]}  f5 {[%clk 0:02:04]} 14. O-O-O {[%clk 0:01:44]}  g5 {[%clk 0:01:58]} 15. Qd2 {[%clk 0:01:35]}  Ng6 {[%clk 0:01:50]} 16. exf5 {[%clk 0:01:33]}  Nf4 {[%clk 0:01:50]} 17. g4 {[%clk 0:01:31]}  b5 {[%clk 0:01:45]} 18. h4 {[%clk 0:01:19]}  bxc4 {[%clk 0:01:39]} 19. Bxc4 {[%clk 0:01:16]}  Rb8 {[%clk 0:01:40]} 20. hxg5 {[%clk 0:01:16]}  hxg5 {[%clk 0:01:41]} 21. Bb3 {[%clk 0:01:03]}  a5 {[%clk 0:01:36]} 22. Nd4 {[%clk 0:01:01]}  Bd7 {[%clk 0:01:19]} 23. Ne6 {[%clk 0:01:00]}  Qf6 {[%clk 0:01:17]} 24. Nxg7 {[%clk 0:00:56]}  Qxg7 {[%clk 0:00:36]} 25. Qd4 {[%clk 0:00:52]}  Rb4 {[%clk 0:00:30]} 26. Qxg7+ {[%clk 0:00:50]}  Kxg7 {[%clk 0:00:31]} 27. Rhe1 {[%clk 0:00:47]}  a4 {[%clk 0:00:28]} 28. Re7+ {[%clk 0:00:38]}  Kf6 {[%clk 0:00:28]} 29. Rxd7 {[%clk 0:00:35]}  axb3 {[%clk 0:00:28]} 30. a3 {[%clk 0:00:31]}  Rc4 {[%clk 0:00:25]} 31. Kb1 {[%clk 0:00:30]}  Re8 {[%clk 0:00:26]} 32. Rh1 {[%clk 0:00:20]}  Nd3 {[%clk 0:00:23]} 33. Rh6+ {[%clk 0:00:18]}  Ke5 {[%clk 0:00:23]} 34. Re6+ {[%clk 0:00:17]}  Rxe6 {[%clk 0:00:20]} 35. dxe6 {[%clk 0:00:17]}  Rxg4 {[%clk 0:00:21]} 36. Ne2 {[%clk 0:00:11]}  Re4 {[%clk 0:00:21]} 37. e7 {[%clk 0:00:10]}  Kf6 {[%clk 0:00:20]} 38. Nc1 {[%clk 0:00:06]}  Nc5 {[%clk 0:00:14]} 39. Rxc7 {[%clk 0:00:00]}  Re1 {[%clk 0:00:10]} 0-1


[Site "https://www.chess.com"]

[Event "Titled Tuesday Blitz August 08 Late 2023"]
[White "Begmuratov, Alisher"]
[Black "Tahbaz, Arash"]
[WhiteFideId "14203367"]
[BlackFideId "12528846"]
[WhiteElo "2675"]
[BlackElo "2880"]
[Result "1-0"]
[Round "6"]
[TimeControl "180+1"]
[Date "2023.08.08"]
[WhiteClock "0:00:17"]
[BlackClock "0:00:02"]
[Board "21"]

1. e4 {[%clk 0:03:00]}  g6 {[%clk 0:02:59]} 2. d4 {[%clk 0:02:58]}  Bg7 {[%clk 0:02:59]} 3. Nc3 {[%clk 0:02:59]}  d6 {[%clk 0:03:00]} 4. Nf3 {[%clk 0:02:56]}  Nf6 {[%clk 0:02:58]} 5. Bc4 {[%clk 0:02:56]}  O-O {[%clk 0:02:58]} 6. O-O {[%clk 0:02:52]}  Nxe4 {[%clk 0:02:52]} 7. Nxe4 {[%clk 0:02:53]}  d5 {[%clk 0:02:53]} 8. Bd3 {[%clk 0:02:52]}  dxe4 {[%clk 0:02:53]} 9. Bxe4 {[%clk 0:02:53]}  Nd7 {[%clk 0:02:54]} 10. Re1 {[%clk 0:02:50]}  c5 {[%clk 0:02:54]} 11. Be3 {[%clk 0:02:47]}  Nf6 {[%clk 0:02:37]} 12. Bd3 {[%clk 0:02:47]}  Nd5 {[%clk 0:02:36]} 13. c3 {[%clk 0:02:38]}  Nxe3 {[%clk 0:02:28]} 14. fxe3 {[%clk 0:02:39]}  Qc7 {[%clk 0:02:25]} 15. Qe2 {[%clk 0:02:36]}  b6 {[%clk 0:02:25]} 16. Ba6 {[%clk 0:02:29]}  Bxa6 {[%clk 0:02:14]} 17. Qxa6 {[%clk 0:02:30]}  e5 {[%clk 0:02:14]} 18. dxe5 {[%clk 0:02:21]}  Bxe5 {[%clk 0:02:13]} 19. Rad1 {[%clk 0:02:21]}  Rae8 {[%clk 0:02:10]} 20. Qc4 {[%clk 0:02:17]}  Re7 {[%clk 0:02:10]} 21. e4 {[%clk 0:02:16]}  Rfe8 {[%clk 0:02:09]} 22. a4 {[%clk 0:02:11]}  Bg7 {[%clk 0:02:02]} 23. g3 {[%clk 0:02:09]}  h6 {[%clk 0:01:59]} 24. Kg2 {[%clk 0:02:09]}  Kh7 {[%clk 0:02:00]} 25. h4 {[%clk 0:02:02]}  Qc6 {[%clk 0:01:58]} 26. Rd5 {[%clk 0:02:00]}  Qe6 {[%clk 0:01:32]} 27. Qd3 {[%clk 0:01:55]}  Qg4 {[%clk 0:01:29]} 28. Nh2 {[%clk 0:01:52]}  Qe6 {[%clk 0:01:24]} 29. Nf3 {[%clk 0:01:51]}  Kg8 {[%clk 0:01:23]} 30. e5 {[%clk 0:01:47]}  Qc6 {[%clk 0:01:21]} 31. Qe4 {[%clk 0:01:33]}  Rd7 {[%clk 0:01:07]} 32. Rxd7 {[%clk 0:01:31]}  Qxd7 {[%clk 0:01:06]} 33. Qc4 {[%clk 0:01:26]}  Qc6 {[%clk 0:01:06]} 34. Kf2 {[%clk 0:01:25]}  Qd7 {[%clk 0:01:03]} 35. g4 {[%clk 0:01:25]}  Rd8 {[%clk 0:01:03]} 36. e6 {[%clk 0:01:22]}  fxe6 {[%clk 0:01:03]} 37. Rxe6 {[%clk 0:01:21]}  Qf7 {[%clk 0:01:03]} 38. Qe4 {[%clk 0:01:18]}  Rd2+ {[%clk 0:00:44]} 39. Kg3 {[%clk 0:01:06]}  Rxb2 {[%clk 0:00:36]} 40. g5 {[%clk 0:00:56]}  hxg5 {[%clk 0:00:22]} 41. hxg5 {[%clk 0:00:55]}  Qc7+ {[%clk 0:00:21]} 42. Kh3 {[%clk 0:00:53]}  Qd7 {[%clk 0:00:21]} 43. Kg3 {[%clk 0:00:52]}  Qc7+ {[%clk 0:00:20]} 44. Kh4 {[%clk 0:00:44]}  Qd7 {[%clk 0:00:20]} 45. Qxg6 {[%clk 0:00:39]}  Kf8 {[%clk 0:00:19]} 46. Rd6 {[%clk 0:00:37]}  Qe8 {[%clk 0:00:15]} 47. Qf5+ {[%clk 0:00:38]}  Kg8 {[%clk 0:00:15]} 48. Re6 {[%clk 0:00:36]}  Qf7 {[%clk 0:00:15]} 49. Qe4 {[%clk 0:00:36]}  Rf2 {[%clk 0:00:14]} 50. Qa8+ {[%clk 0:00:26]}  Bf8 {[%clk 0:00:14]} 51. Rf6 {[%clk 0:00:26]}  Qe7 {[%clk 0:00:06]} 52. Kg3 {[%clk 0:00:23]}  Re2 {[%clk 0:00:05]} 53. Qd5+ {[%clk 0:00:23]}  Kg7 {[%clk 0:00:04]} 54. Qf5 {[%clk 0:00:21]}  Qe8 {[%clk 0:00:02]} 55. Rh6 {[%clk 0:00:19]}  Kg8 {[%clk 0:00:02]} 56. Qh7# {[%clk 0:00:17]} 1-0


[Site "https://www.chess.com"]

[Event "Titled Tuesday Blitz August 08 Late 2023"]
[White "Pantev, Veselin"]
[Black "Henriquez Villagra, Cristobal"]
[WhiteFideId "2901390"]
[BlackFideId "3409350"]
[WhiteElo "2621"]
[BlackElo "2848"]
[Result "0-1"]
[Round "6"]
[TimeControl "180+1"]
[Date "2023.08.08"]
[WhiteClock "0:00:04"]
[BlackClock "0:00:16"]
[Board "30"]

1. d4 {[%clk 0:03:00]}  d6 {[%clk 0:03:00]} 2. Nf3 {[%clk 0:03:00]}  g6 {[%clk 0:03:00]} 3. Bf4 {[%clk 0:03:00]}  Bg7 {[%clk 0:02:55]} 4. e3 {[%clk 0:03:00]}  Nd7 {[%clk 0:02:55]} 5. h3 {[%clk 0:03:00]}  c5 {[%clk 0:02:54]} 6. c3 {[%clk 0:02:58]}  Ngf6 {[%clk 0:02:54]} 7. Be2 {[%clk 0:02:58]}  O-O {[%clk 0:02:54]} 8. O-O {[%clk 0:02:58]}  b6 {[%clk 0:02:55]} 9. a4 {[%clk 0:02:58]}  Bb7 {[%clk 0:02:55]} 10. Na3 {[%clk 0:02:58]}  a6 {[%clk 0:02:53]} 11. Bh2 {[%clk 0:02:56]}  Rc8 {[%clk 0:02:51]} 12. Qb3 {[%clk 0:02:56]}  Rc7 {[%clk 0:02:42]} 13. Rad1 {[%clk 0:02:55]}  Qa8 {[%clk 0:02:42]} 14. c4 {[%clk 0:02:48]}  Ne4 {[%clk 0:02:37]} 15. d5 {[%clk 0:02:48]}  Ne5 {[%clk 0:02:14]} 16. Qc2 {[%clk 0:02:29]}  f5 {[%clk 0:02:13]} 17. Ne1 {[%clk 0:02:04]}  Nf6 {[%clk 0:02:01]} 18. f4 {[%clk 0:01:51]}  Ned7 {[%clk 0:01:55]} 19. Bf3 {[%clk 0:01:51]}  Ne4 {[%clk 0:01:29]} 20. g4 {[%clk 0:01:43]}  Ndf6 {[%clk 0:01:22]} 21. g5 {[%clk 0:01:39]}  Nh5 {[%clk 0:01:22]} 22. Bxe4 {[%clk 0:01:17]}  fxe4 {[%clk 0:01:22]} 23. Qxe4 {[%clk 0:01:17]}  Bxb2 {[%clk 0:00:34]} 24. Nac2 {[%clk 0:01:16]}  Qc8 {[%clk 0:00:33]} 25. Qf3 {[%clk 0:01:01]}  Bg7 {[%clk 0:00:32]} 26. Qg4 {[%clk 0:00:58]}  Qe8 {[%clk 0:00:22]} 27. e4 {[%clk 0:00:56]}  Qxa4 {[%clk 0:00:20]} 28. f5 {[%clk 0:00:50]}  Bc8 {[%clk 0:00:19]} 29. Qe2 {[%clk 0:00:43]}  b5 {[%clk 0:00:18]} 30. Ng2 {[%clk 0:00:37]}  Qxc4 {[%clk 0:00:17]} 31. Qxc4 {[%clk 0:00:37]}  bxc4 {[%clk 0:00:18]} 32. Nge3 {[%clk 0:00:36]}  c3 {[%clk 0:00:19]} 33. Kg2 {[%clk 0:00:33]}  Rb7 {[%clk 0:00:18]} 34. Rb1 {[%clk 0:00:29]}  Rb2 {[%clk 0:00:17]} 35. f6 {[%clk 0:00:25]}  exf6 {[%clk 0:00:17]} 36. Bxd6 {[%clk 0:00:25]}  Re8 {[%clk 0:00:18]} 37. gxf6 {[%clk 0:00:24]}  Nxf6 {[%clk 0:00:18]} 38. e5 {[%clk 0:00:19]}  Ne4 {[%clk 0:00:19]} 39. Bxc5 {[%clk 0:00:17]}  Nxc5 {[%clk 0:00:18]} 40. e6 {[%clk 0:00:17]}  Ne4 {[%clk 0:00:17]} 41. Kf3 {[%clk 0:00:16]}  Nd6 {[%clk 0:00:17]} 42. Na3 {[%clk 0:00:15]}  Bb7 {[%clk 0:00:17]} 43. Rbc1 {[%clk 0:00:14]}  Rf8+ {[%clk 0:00:17]} 44. Kg4 {[%clk 0:00:12]}  Re8 {[%clk 0:00:15]} 45. Nec4 {[%clk 0:00:11]}  Nxc4 {[%clk 0:00:15]} 46. Nxc4 {[%clk 0:00:11]}  Rb4 {[%clk 0:00:16]} 47. Kg5 {[%clk 0:00:11]}  Rxc4 {[%clk 0:00:16]} 48. d6 {[%clk 0:00:09]}  h6+ {[%clk 0:00:16]} 49. Kxg6 {[%clk 0:00:09]}  Rxe6+ {[%clk 0:00:17]} 50. Kf5 {[%clk 0:00:04]}  Rxd6 {[%clk 0:00:16]} 0-1


[Site "https://www.chess.com"]

[Event "Titled Tuesday Blitz August 08 Late 2023"]
[White "Gasparyan, David"]
[Black "Gadimbayli, Abdulla"]
[WhiteFideId "13311980"]
[BlackFideId "13404938"]
[WhiteElo "2593"]
[BlackElo "2835"]
[Result "0-1"]
[Round "6"]
[TimeControl "180+1"]
[Date "2023.08.08"]
[WhiteClock "0:00:34"]
[BlackClock "0:02:37"]
[Board "31"]

1. e4 {[%clk 0:03:00]}  e5 {[%clk 0:03:00]} 2. Nf3 {[%clk 0:02:59]}  d5 {[%clk 0:02:59]} 3. exd5 {[%clk 0:02:58]}  e4 {[%clk 0:03:00]} 4. Ne5 {[%clk 0:02:57]}  Qxd5 {[%clk 0:02:59]} 5. d4 {[%clk 0:02:58]}  exd3 {[%clk 0:03:00]} 6. Nxd3 {[%clk 0:02:58]}  Nf6 {[%clk 0:03:00]} 7. Nc3 {[%clk 0:02:57]}  Qf5 {[%clk 0:03:01]} 8. Be2 {[%clk 0:02:50]}  Bd6 {[%clk 0:03:01]} 9. Be3 {[%clk 0:02:47]}  O-O {[%clk 0:03:01]} 10. Qd2 {[%clk 0:02:44]}  Nc6 {[%clk 0:03:00]} 11. O-O-O {[%clk 0:02:40]}  Be6 {[%clk 0:03:00]} 12. h3 {[%clk 0:02:21]}  Rad8 {[%clk 0:02:57]} 13. g4 {[%clk 0:02:21]}  Qa5 {[%clk 0:02:58]} 14. Kb1 {[%clk 0:02:11]}  Ne4 {[%clk 0:02:54]} 15. Qe1 {[%clk 0:01:57]}  Nxc3+ {[%clk 0:02:54]} 16. Qxc3 {[%clk 0:01:57]}  Qxa2+ {[%clk 0:02:54]} 17. Kc1 {[%clk 0:01:58]}  Bb4 {[%clk 0:02:55]} 18. Qxb4 {[%clk 0:01:32]}  Nxb4 {[%clk 0:02:54]} 19. Bc5 {[%clk 0:01:26]}  Qa1+ {[%clk 0:02:46]} 20. Kd2 {[%clk 0:01:26]}  Qxb2 {[%clk 0:02:47]} 21. Bxb4 {[%clk 0:00:58]}  Qxb4+ {[%clk 0:02:47]} 22. Ke3 {[%clk 0:00:56]}  Qd4+ {[%clk 0:02:45]} 23. Kd2 {[%clk 0:00:56]}  Bc4 {[%clk 0:02:43]} 24. Rhf1 {[%clk 0:00:48]}  c5 {[%clk 0:02:41]} 25. f4 {[%clk 0:00:46]}  Rfe8 {[%clk 0:02:38]} 26. Rf3 {[%clk 0:00:37]}  Bxd3 {[%clk 0:02:37]} 27. cxd3 {[%clk 0:00:34]}  Qb2+ {[%clk 0:02:37]} 0-1


[Site "https://www.chess.com"]